fUST/lending_fUST_20240518
["ID","MTS","AMOUNT","RATE_DAILY","PERIOD"]
[327399702,1716041461585,-500.0,0.0001726,2]
[327399703,1716041461594,-500.0,0.0001726,2]
[327399704,1716041461604,-500.0,0.0001726,2]
[327399705,1716041461613,-500.0,0.0001726,2]
[327399706,1716041461623,-500.0,0.0001726,2]
[327399707,1716041461632,-500.0,0.0001726,2]
[327399708,1716041461641,-2314.2,0.0001726,2]
[327399709,1716041461651,-905.09,0.0001726,2]
[327399710,1716041461660,-500.0,0.0001726,2]
[327399711,1716041461669,-500.0,0.0001726,2]
[327399712,1716041461678,-1153.203786,0.0001726,2]
[327399713,1716041461687,-500.0,0.0001726,2]
[327399714,1716041461697,-500.0,0.0001726,2]
[327399715,1716041461707,-1153.203786,0.0001726,2]
[327399716,1716041461717,-500.0,0.0001726,2]
[327399717,1716041461726,-500.0,0.0001726,2]
[327399718,1716041461736,-500.0,0.0001726,2]
[327399719,1716041461745,-500.0,0.0001726,2]
[327399720,1716041461755,-531.25128795,0.0001726,2]
[327399721,1716041461765,-500.0,0.0001726,2]
[327399722,1716041461774,-500.0,0.0001726,2]
[327399723,1716041461784,-500.0,0.0001726,2]
[327399724,1716041461793,-778.21,0.0001726,2]
[327399725,1716041461803,-359.313722,0.0001726,2]
[327399726,1716041461873,-500.0,0.0001726,2]
[327399727,1716041461883,-359.313722,0.0001726,2]
[327399728,1716041461894,-500.0,0.0001726,2]
[327399729,1716041461904,-500.0,0.0001726,2]
[327399730,1716041461914,-600.59,0.0001726,2]
[327399731,1716041461924,-500.0,0.0001726,2]
[327399732,1716041461933,-500.0,0.0001726,2]
[327399733,1716041461943,-1146.27,0.0001726,2]
[327399734,1716041461953,-500.0,0.0001726,2]
[327399735,1716041461963,-500.0,0.0001726,2]
[327399736,1716041461972,-669.1,0.0001726,2]
[327399737,1716041461982,-500.0,0.0001726,2]
[327399738,1716041461992,-216.21586,0.0001726,2]
[327399739,1716041462001,-500.0,0.0001726,2]
[327399740,1716041462011,-216.21586,0.0001726,2]
[327399741,1716041462021,-500.0,0.0001726,2]
[327399742,1716041462032,-500.0,0.0001726,2]
[327399743,1716041462042,-500.0,0.0001726,2]
[327399744,1716041462052,-500.0,0.0001726,2]
[327399745,1716041462062,-500.0,0.0001726,2]
[327399746,1716041462071,-500.0,0.0001726,2]
[327399747,1716041462081,-234.648976,0.0001726,2]
[327399748,1716041462091,-234.648976,0.0001726,2]
[327399749,1716041462100,-500.0,0.0001726,2]
[327399750,1716041462109,-500.0,0.0001726,2]
[327399751,1716041462119,-500.0,0.0001726,2]
[327399752,1716041462128,-500.0,0.0001726,2]
[327399753,1716041462138,-1833.277828,0.0001726,2]
[327399754,1716041462149,-500.0,0.0001726,2]
[327399755,1716041462159,-1164.81,0.0001726,2]
[327399756,1716041462169,-1833.277828,0.0001726,2]
[327399757,1716041462178,-555.82,0.0001726,2]
[327399758,1716041462188,-500.0,0.0001726,2]
[327399759,1716041462198,-213.674723,0.0001726,2]
[327399760,1716041462207,-500.0,0.0001726,2]
[327399761,1716041462216,-213.674723,0.0001726,2]
[327399762,1716041462226,-500.0,0.0001726,2]
[327399763,1716041462235,-2252.25,0.0001726,2]
[327399764,1716041462245,-2984.13,0.0001726,2]
[327399765,1716041462254,-253.43414188,0.0001726,2]
[327399766,1716041462263,-500.0,0.0001726,2]
[327399767,1716041462274,-500.0,0.0001726,2]
[327399768,1716041462285,-940.64,0.0001726,2]
[327399769,1716041462296,-513.83,0.0001726,2]
[327399770,1716041462309,-1230.01,0.0001726,2]
[327399771,1716041462319,-500.0,0.0001726,2]
[327399772,1716041462329,-151.0,0.0001726,2]
[327399773,1716041462339,-1177.423208,0.0001726,2]
[327399774,1716041462350,-500.0,0.0001726,2]
[327399775,1716041462360,-2369.25,0.0001726,2]
[327399776,1716041462369,-1177.423208,0.0001726,2]
[327399777,1716041462380,-970.18,0.0001726,2]
[327399778,1716041462390,-500.0,0.0001726,2]
[327399779,1716041462400,-500.0,0.0001726,2]
[327399780,1716041462410,-500.0,0.0001726,2]
[327399781,1716041462420,-500.0,0.0001726,2]
[327399782,1716041462430,-500.0,0.0001726,2]
[327399783,1716041462442,-992.63,0.0001726,2]
[327399784,1716041462452,-500.0,0.0001726,2]
[327399785,1716041462461,-500.0,0.0001726,2]
[327399786,1716041462471,-1722.233124,0.0001726,2]
[327399787,1716041462482,-500.0,0.0001726,2]
[327399788,1716041462492,-500.0,0.0001726,2]
[327399789,1716041462501,-500.0,0.0001726,2]
[327399790,1716041462511,-500.0,0.0001726,2]
[327399791,1716041462521,-1294.4,0.0001726,2]
[327399792,1716041462531,-502.50036478,0.0001726,2]
[327399793,1716041462540,-1722.233124,0.0001726,2]
[327399794,1716041462550,-500.0,0.0001726,2]
[327399795,1716041462559,-239.617818,0.0001726,2]
[327399796,1716041462569,-500.0,0.0001726,2]
[327399797,1716041462578,-880.3,0.0001726,2]
[327399798,1716041462587,-239.617818,0.0001726,2]
[327399799,1716041462597,-757.37,0.0001726,2]
[327399800,1716041462606,-500.0,0.0001726,2]
[327399801,1716041462615,-500.0,0.0001726,2]
[327399802,1716041462625,-500.0,0.0001726,2]
[327399803,1716041462635,-500.0,0.0001726,2]
[327399804,1716041462645,-892.38,0.0001726,2]
[327399805,1716041462654,-500.0,0.0001726,2]
[327399806,1716041462664,-817.91,0.0001726,2]
[327399807,1716041462673,-500.0,0.0001726,2]
[327399808,1716041462682,-700.79,0.0001726,2]
[327399809,1716041462691,-647.88,0.0001726,2]
[327399810,1716041462700,-500.0,0.0001726,2]
[327399811,1716041462711,-500.0,0.0001726,2]
[327399812,1716041462720,-500.0,0.0001726,2]
[327399813,1716041462730,-1284.55,0.0001726,2]
[327399814,1716041462739,-151.0,0.0001726,2]
[327399815,1716041462748,-500.0,0.0001726,2]
[327399816,1716041462758,-500.0,0.0001726,2]
[327399817,1716041462767,-500.0,0.0001726,2]
[327399818,1716041462776,-500.0,0.0001726,2]
[327399819,1716041462786,-504.4892064,0.0001726,2]
[327399820,1716041462796,-151.0,0.0001726,2]
[327399821,1716041462805,-1226.3,0.0001726,2]
[327399822,1716041462815,-503.99918612,0.0001726,2]
[327399823,1716041462824,-151.0,0.0001726,2]
[327399824,1716041462834,-500.0,0.0001726,2]
[327399825,1716041462843,-500.0,0.0001726,2]
[327399826,1716041462853,-197.79420204,0.0001726,2]
[327399827,1716041462919,-664.04345,0.0001726,2]
[327399828,1716041462929,-151.0,0.0001726,2]
[327399829,1716041462938,-500.0,0.0001726,2]
[327399830,1716041462947,-664.04345,0.0001726,2]
[327399831,1716041462957,-1023.85,0.0001726,2]
[327399832,1716041462966,-4673.23,0.0001726,2]
[327399833,1716041462975,-14446.14,0.0001726,2]
[327399834,1716041462984,-500.0,0.0001726,2]
[327399835,1716041462993,-500.0,0.0001726,2]
[327399836,1716041463002,-500.0,0.0001726,2]
[327399837,1716041463011,-500.0,0.00017534,2]
[327399838,1716041463021,-500.0,0.00017534,2]
[327399839,1716041463031,-500.0,0.00017534,2]
[327399840,1716041463040,-500.0,0.00017534,2]
[327399841,1716041463049,-500.0,0.00017534,2]
[327399842,1716041463059,-500.0,0.00017534,2]
[327399843,1716041463069,-500.0,0.00017534,2]
[327399844,1716041463078,-500.0,0.00017534,2]
[327399845,1716041463088,-500.0,0.00017534,2]
[327399846,1716041463098,-500.0,0.00017534,2]
[327399847,1716041463108,-500.0,0.00017534,2]
[327399848,1716041463117,-500.0,0.00017534,2]
[327399849,1716041463126,-500.0,0.00017534,2]
[327399850,1716041463136,-160.043563,0.00017534,2]
[327399851,1716041463146,-160.043563,0.00017534,2]
[327399852,1716041463156,-151.0,0.00017534,2]
[327399853,1716041463165,-500.0,0.00017534,2]
[327399854,1716041463174,-500.0,0.00017534,2]
[327399855,1716041463183,-500.0,0.00017534,2]
[327399856,1716041463193,-151.0,0.00017534,2]
[327399857,1716041463202,-151.0,0.00017534,2]
[327399858,1716041463211,-500.0,0.00017534,2]
[327399859,1716041463221,-500.0,0.00017534,2]
[327399860,1716041463230,-151.0,0.00017534,2]
[327399861,1716041463239,-500.0,0.00017534,2]
[327399862,1716041463249,-500.0,0.00017534,2]
[327399863,1716041463258,-607.86,0.00017534,2]
[327399864,1716041463267,-500.0,0.00017534,2]
[327399865,1716041463277,-500.0,0.00017534,2]
[327399866,1716041463287,-500.0,0.00017534,2]
[327399867,1716041463298,-500.0,0.00017534,2]
[327399868,1716041463309,-500.0,0.00017534,2]
[327399869,1716041463318,-538.79,0.00017534,2]
[327399870,1716041463328,-500.0,0.00017534,2]
[327399871,1716041463338,-151.0,0.00017534,2]
[327399872,1716041463347,-151.0,0.00017534,2]
[327399873,1716041463356,-500.0,0.00017534,2]
[327399874,1716041463371,-500.0,0.00017534,2]
[327399875,1716041463395,-500.0,0.00017534,2]
[327399876,1716041463412,-500.0,0.00017534,2]
[327399877,1716041463433,-650.76,0.00017534,2]
[327399878,1716041463455,-500.0,0.00017534,2]
[327399879,1716041463472,-500.0,0.00017534,2]
[327399880,1716041463490,-500.0,0.00017534,2]
[327399881,1716041463505,-500.0,0.00017534,2]
[327399882,1716041463522,-500.0,0.00017534,2]
[327399883,1716041463541,-500.0,0.00017534,2]
[327399884,1716041463558,-500.0,0.00017534,2]
[327399885,1716041463570,-500.0,0.00017534,2]
[327399886,1716041463590,-500.0,0.00017534,2]
[327399887,1716041463604,-151.613688,0.00017534,2]
[327399888,1716041463619,-500.0,0.00017534,2]
[327399889,1716041463633,-151.613688,0.00017534,2]
[327399890,1716041463649,-600.95,0.00017534,2]
[327399891,1716041463663,-500.0,0.00017534,2]
[327399892,1716041463677,-500.0,0.00017534,2]
[327399893,1716041463693,-500.0,0.00017534,2]
[327399894,1716041463707,-519.99971185,0.00017534,2]
[327399895,1716041463722,-500.0,0.00017534,2]
[327399896,1716041463737,-500.0,0.00017534,2]
[327399897,1716041463752,-500.0,0.00017534,2]
[327399898,1716041463767,-500.0,0.00017534,2]
[327399899,1716041463783,-500.0,0.00017534,2]
[327399900,1716041463797,-500.0,0.00017534,2]
[327399901,1716041463811,-500.0,0.00017534,2]
[327399902,1716041463826,-403.19364,0.00017534,2]
[327399903,1716041463840,-500.0,0.00017534,2]
[327399904,1716041463854,-151.0,0.00017534,2]
[327399905,1716041463870,-403.19364,0.00017534,2]
[327399906,1716041463886,-500.0,0.00017534,2]
[327399907,1716041463900,-500.0,0.00017534,2]
[327399908,1716041463914,-506.73329568,0.00017534,2]
[327399909,1716041463929,-500.0,0.00017534,2]
[327399910,1716041463944,-223.87,0.00017534,2]
[327399911,1716041463958,-500.0,0.00017534,2]
[327399912,1716041463974,-707.34,0.00017534,2]
[327399913,1716041463990,-714.86,0.00017534,2]
[327399914,1716041464005,-500.0,0.00017534,2]
[327399915,1716041464019,-500.0,0.00017534,2]
[327399916,1716041464034,-435.148802,0.00017534,2]
[327399917,1716041464050,-500.0,0.00017534,2]
[327399918,1716041464065,-500.0,0.00017534,2]
[327399919,1716041464080,-500.0,0.00017534,2]
[327399920,1716041464179,-435.148802,0.00017534,2]
[327399921,1716041464191,-500.0,0.00017534,2]
[327399922,1716041464200,-500.0,0.00017534,2]
[327399923,1716041464210,-160.970663,0.00017534,2]
[327399924,1716041464219,-160.970663,0.00017534,2]
[327399925,1716041464229,-1141.0,0.00017534,2]
[327399926,1716041464239,-1380.31,0.00017534,2]
[327399927,1716041464248,-500.0,0.00017534,2]
[327399928,1716041464258,-1240.42,0.00017534,2]
[327399929,1716041464268,-500.0,0.00017534,2]
[327399930,1716041464278,-500.0,0.00017534,2]
[327399931,1716041464288,-500.0,0.00017534,2]
[327399932,1716041464301,-270.32,0.00017534,2]
[327399933,1716041464312,-500.0,0.00017534,2]
[327399934,1716041464321,-500.0,0.00017534,2]
[327399935,1716041464331,-500.0,0.00017534,2]
[327399936,1716041464341,-218.08,0.00017534,2]
[327399937,1716041464350,-500.0,0.00017534,2]
[327399938,1716041464360,-500.0,0.00017534,2]
[327399939,1716041464369,-500.0,0.00017534,2]
[327399940,1716041464380,-552.78,0.00017534,2]
[327399941,1716041464390,-500.0,0.00017534,2]
[327399942,1716041464399,-567.18,0.00017534,2]
[327399943,1716041464408,-500.0,0.00017534,2]
[327399944,1716041464417,-500.0,0.00017534,2]
[327399945,1716041464426,-247.15,0.00017534,2]
[327399946,1716041464435,-878.61,0.00017534,2]
[327399947,1716041464445,-803.98,0.00017534,2]
[327399948,1716041464456,-500.0,0.00017534,2]
[327399949,1716041464467,-500.0,0.00017534,2]
[327399950,1716041464477,-500.0,0.00017534,2]
[327399951,1716041464486,-500.0,0.00017534,2]
[327399952,1716041464495,-500.0,0.00017534,2]
[327399953,1716041464505,-571.8,0.00017534,2]
[327399954,1716041464514,-500.0,0.00017534,2]
[327399955,1716041464524,-500.0,0.00017534,2]
[327399956,1716041464534,-500.0,0.00017534,2]
[327399957,1716041464545,-500.0,0.00017534,2]
[327399958,1716041464555,-500.0,0.00017534,2]
[327399959,1716041464564,-500.0,0.00017534,2]
[327399960,1716041464573,-500.0,0.00017534,2]
[327399961,1716041464583,-500.0,0.00017534,2]
[327399962,1716041464592,-500.0,0.00017534,2]
[327399963,1716041464601,-652.779384,0.00017534,2]
[327399964,1716041464611,-980.61,0.00017534,2]
[327399965,1716041464620,-3785.46,0.00017534,2]
[327399966,1716041464629,-500.0,0.00017534,2]
[327399967,1716041464640,-652.779384,0.00017534,2]
[327399968,1716041464649,-500.0,0.00017534,2]
[327399969,1716041464658,-500.0,0.00017534,2]
[327399970,1716041464668,-500.0,0.00017534,2]
[327399971,1716041464677,-500.0,0.00017534,2]
[327399972,1716041464686,-506.53639279,0.00017534,2]
[327399973,1716041464695,-500.0,0.00017534,2]
[327399974,1716041464704,-2314.2,0.00017534,2]
[327399975,1716041464714,-905.09,0.00017534,2]
[327399976,1716041464724,-500.0,0.00017534,2]
[327399977,1716041464732,-500.0,0.00017534,2]
[327399978,1716041464741,-1153.203786,0.00017534,2]
[327399979,1716041464751,-500.0,0.00017534,2]
[327399980,1716041464760,-500.0,0.00017534,2]
[327399981,1716041464770,-1153.203786,0.00017534,2]
[327399982,1716041464779,-436.90892052,0.00017534,2]
[327399983,1716041464789,-500.0,0.00017534,2]
[327399984,1716041464799,-500.0,0.00017534,2]
[327399985,1716041464808,-500.0,0.00017534,2]
[327399986,1716041464818,-500.0,0.00017534,2]
[327399987,1716041464827,-500.0,0.00017534,2]
[327399988,1716041464837,-500.0,0.00017534,2]
[327399989,1716041464846,-778.21,0.00017534,2]
[327399990,1716041464856,-359.313722,0.00017534,2]
[327399991,1716041464865,-500.0,0.00017534,2]
[327399992,1716041464875,-359.313722,0.00017534,2]
[327399993,1716041464884,-500.0,0.00017534,2]
[327399994,1716041464893,-500.0,0.00017534,2]
[327399995,1716041464903,-600.59,0.00017534,2]
[327399996,1716041464912,-500.0,0.00017534,2]
[327399997,1716041464922,-500.0,0.00017534,2]
[327399998,1716041464932,-1146.27,0.00017534,2]
[327399999,1716041464942,-500.0,0.00017534,2]
[327400000,1716041464951,-500.0,0.00017534,2]
[327400001,1716041464961,-669.1,0.00017534,2]
[327400002,1716041464970,-500.0,0.00017534,2]
[327400003,1716041464979,-500.0,0.00017534,2]
[327400004,1716041464989,-216.21586,0.00017534,2]
[327400005,1716041464999,-216.21586,0.00017534,2]
[327400006,1716041465009,-500.0,0.00017534,2]
[327400007,1716041465018,-500.0,0.00017534,2]
[327400008,1716041465028,-500.0,0.00017534,2]
[327400009,1716041465039,-500.0,0.00017534,2]
[327400010,1716041465048,-500.0,0.00017534,2]
[327400011,1716041465057,-500.0,0.00017534,2]
[327400012,1716041465066,-234.648976,0.00017534,2]
[327400013,1716041465076,-234.648976,0.00017534,2]
[327400014,1716041465086,-627.23625945,0.00017534,2]
[327400015,1716041465095,-500.0,0.00017534,2]
[327400016,1716041465105,-618.3,0.00017534,2]
[327400017,1716041465115,-500.0,0.00017534,2]
[327400018,1716041465125,-1833.277828,0.00017534,2]
[327400019,1716041465134,-228.56467548,0.00017534,2]
[327400020,1716041465144,-1164.81,0.00017534,2]
[327400021,1716041465153,-1833.277828,0.00017534,2]
[327400022,1716041465163,-555.82,0.00017534,2]
[327400023,1716041465173,-500.0,0.00017534,2]
[327400024,1716041465182,-213.674723,0.00017534,2]
[327400025,1716041465192,-500.0,0.00017534,2]
[327400026,1716041465202,-213.674723,0.00017534,2]
[327400027,1716041465211,-500.0,0.00017534,2]
[327400028,1716041465221,-2252.25,0.00017534,2]
[327400029,1716041465231,-2984.13,0.00017534,2]
[327400030,1716041465240,-500.0,0.00017534,2]
[327400031,1716041465250,-500.0,0.00017534,2]
[327400032,1716041465260,-940.64,0.00017534,2]
[327400033,1716041465270,-513.83,0.00017534,2]
[327400034,1716041465279,-1230.01,0.00017534,2]
[327400035,1716041465289,-500.0,0.00017534,2]
[327400036,1716041465301,-206.466269,0.00017534,2]
[327400037,1716041465312,-1177.423208,0.00017534,2]
[327400038,1716041465321,-500.0,0.00017534,2]
[327400039,1716041465331,-2369.25,0.00017534,2]
[327400040,1716041465341,-1177.423208,0.00017534,2]
[327400041,1716041465351,-970.18,0.00017534,2]
[327400042,1716041465360,-295.47609596,0.00017534,2]
[327400043,1716041465369,-500.0,0.00017534,2]
[327400044,1716041465380,-500.0,0.00017534,2]
[327400045,1716041465389,-500.0,0.00017534,2]
[327400046,1716041465399,-992.63,0.00017534,2]
[327400047,1716041465408,-500.0,0.00017534,2]
[327400048,1716041465417,-500.0,0.00017534,2]
[327400049,1716041465427,-1722.233124,0.00017534,2]
[327400050,1716041465436,-500.0,0.00017534,2]
[327400051,1716041465445,-500.0,0.00017534,2]
[327400052,1716041465455,-500.0,0.00017534,2]
[327400053,1716041465465,-500.0,0.00017534,2]
[327400054,1716041465475,-1294.4,0.00017534,2]
[327400055,1716041465484,-1722.233124,0.00017534,2]
[327400056,1716041465493,-568.43379303,0.00017534,2]
[327400057,1716041465503,-239.617818,0.00017534,2]
[327400058,1716041465512,-500.0,0.00017534,2]
[327400059,1716041465521,-880.3,0.00017534,2]
[327400060,1716041465530,-239.617818,0.00017534,2]
[327400061,1716041465540,-757.37,0.00017534,2]
[327400062,1716041465550,-500.0,0.00017534,2]
[327400063,1716041465559,-500.0,0.00017534,2]
[327400064,1716041465568,-500.0,0.00017534,2]
[327400065,1716041465638,-500.0,0.00017534,2]
[327400066,1716041465657,-892.38,0.00017534,2]
[327400067,1716041465667,-500.0,0.00017534,2]
[327400068,1716041465676,-817.91,0.00017534,2]
[327400069,1716041465685,-700.79,0.00017534,2]
[327400070,1716041465694,-647.88,0.00017534,2]
[327400071,1716041465703,-500.0,0.00017534,2]
[327400072,1716041465713,-335.53726188,0.00017534,2]
[327400073,1716041465722,-500.0,0.00017534,2]
[327400074,1716041465732,-1284.55,0.00017534,2]
[327400075,1716041465741,-151.0,0.00017534,2]
[327400076,1716041465751,-500.0,0.00017534,2]
[327400077,1716041465760,-500.0,0.00017534,2]
[327400078,1716041465770,-500.0,0.00017534,2]
[327400079,1716041465779,-500.0,0.00017534,2]
[327400080,1716041465788,-268.492846,0.00017534,2]
[327400081,1716041465798,-1226.3,0.00017534,2]
[327400082,1716041465808,-500.0,0.00017534,2]
[327400083,1716041465817,-151.0,0.00017534,2]
[327400084,1716041465827,-500.0,0.00017534,2]
[327400085,1716041465836,-664.04345,0.00017534,2]
[327400086,1716041465846,-256.162938,0.00017534,2]
[327400087,1716041465856,-500.0,0.00017534,2]
[327400088,1716041465865,-664.04345,0.00017534,2]
[327400089,1716041465874,-1023.85,0.00017534,2]
[327400090,1716041465883,-4673.23,0.00017534,2]
[327400091,1716041465892,-11936.87822398,0.00017534,2]
[327400092,1716042028936,653.6,0.000265,120]
[327400103,1716042337414,-194.45514723,7.206e-05,2]
[327400104,1716042337436,-2678.78839717,7.207e-05,2]
[327400105,1716042337459,-513.4844886,7.207e-05,2]
[327400106,1716042337482,-207.34451471,7.207e-05,2]
[327400107,1716042337505,-261.10136921,7.207e-05,2]
[327400108,1716042337527,-1581.42130168,7.208e-05,2]
[327400109,1716042337549,-26207.82489209,7.208e-05,2]
[327400110,1716042337574,-835.50091713,7.208e-05,2]
[327400111,1716042337596,-11053.04296534,7.208e-05,2]
[327400112,1716042337619,-330.96158487,7.209e-05,2]
[327400113,1716042337642,-1542.01871984,7.209e-05,2]
[327400114,1716042337665,-10508.75516608,7.209e-05,2]
[327400115,1716042337688,-452.52831116,7.209e-05,2]
[327400116,1716042337710,-9559.52730965,7.209e-05,2]
[327400117,1716042337732,-528.43613852,7.21e-05,2]
[327400118,1716042337754,-658.15339953,7.21e-05,2]
[327400119,1716042337774,-285.03925166,7.21e-05,2]
[327400120,1716042337796,-1897.58698072,7.21e-05,2]
[327400121,1716042337817,-909.64823199,7.21e-05,2]
[327400122,1716042337838,-59402.56585443,7.21e-05,2]
[327400123,1716042337859,-690.19911136,7.211e-05,2]
[327400124,1716042337879,-2114.46454517,7.211e-05,2]
[327400125,1716042337901,-1043.25678867,7.211e-05,2]
[327400126,1716042337922,-7894.33531896,7.211e-05,2]
[327400127,1716042337944,-2597.41542727,7.212e-05,2]
[327400128,1716042337965,-818.31964662,7.213e-05,2]
[327400129,1716042337988,-492.86440031,7.213e-05,2]
[327400130,1716042338010,-1338.92794901,7.213e-05,2]
[327400131,1716042338032,-154.81422293,7.214e-05,2]
[327400132,1716042338053,-1496.37630434,7.214e-05,2]
[327400133,1716042338075,-3062.48237355,7.214e-05,2]
[327400134,1716042338096,-845.77422263,7.229e-05,2]
[327400135,1716042338116,-156.2364718,7.316e-05,2]
[327400136,1716042338137,-24900.0,7.397e-05,2]
[327400137,1716042338159,-734.10889749,7.42e-05,2]
[327400138,1716042338180,-309.62844586,7.494e-05,2]
[327400139,1716042338204,-1029.09283835,7.494e-05,2]
[327400140,1716042338225,-157.33349204,7.495e-05,2]
[327400141,1716042338247,-281.05958494,7.495e-05,2]
[327400142,1716042338268,-1405.61526917,7.5e-05,2]
[327400143,1716042338289,-248.067769,7.501e-05,2]
[327400144,1716042338409,-516.4124434,7.501e-05,2]
[327400145,1716042338433,-354.9995781,7.501e-05,2]
[327400146,1716042338482,522.61290648,7.206e-05,2]
[327400147,1716042340541,1496.37630434,7.206e-05,2]
[327400148,1716042340850,1338.92794901,7.206e-05,2]
[327400149,1716042343662,157.93380693,7.205e-05,2]
[327400150,1716042351236,2678.78839717,7.206e-05,2]
[327400151,1716042351495,3119.29748407,7.206e-05,2]
[327400207,1716042638200,-513.4844886,9.759e-05,2]
[327400209,1716042638210,-177.40182637,9.76e-05,2]
[327400233,1716042638441,-2501.3865708,9.76e-05,2]
[327400234,1716042638450,-1338.92794901,9.76e-05,2]
[327400236,1716042638460,-9559.52730965,9.76e-05,2]
[327400238,1716042638470,-2597.41542727,9.761e-05,2]
[327400240,1716042638480,-285.03925166,9.761e-05,2]
[327400242,1716042638490,-261.10136921,9.761e-05,2]
[327400244,1716042638500,-658.15339953,9.761e-05,2]
[327400246,1716042638510,-154.81422293,9.762e-05,2]
[327400248,1716042638520,-818.31964662,9.762e-05,2]
[327400250,1716042638530,-690.19911136,9.762e-05,2]
[327400252,1716042638540,-26207.82489209,9.762e-05,2]
[327400254,1716042638551,-492.86440031,9.763e-05,2]
[327400256,1716042638561,-3062.48237355,9.763e-05,2]
[327400258,1716042638574,-1043.25678867,9.763e-05,2]
[327400260,1716042638584,-803.39175304,9.763e-05,2]
[327400262,1716042638595,-522.61290648,9.763e-05,2]
[327400264,1716042638605,-835.50091713,9.763e-05,2]
[327400265,1716042638616,-194.45514723,9.763e-05,2]
[327400267,1716042638626,-909.64823199,9.764e-05,2]
[327400269,1716042638637,-1162.93436242,9.765e-05,2]
[327400271,1716042638650,-7894.33531896,9.85e-05,2]
[327400273,1716042638661,-10508.75516608,9.85e-05,2]
[327400275,1716042638671,-59402.56585443,9.851e-05,2]
[327400277,1716042638681,-1589.37394389,9.852e-05,2]
[327400279,1716042638694,-823.27427068,9.859e-05,2]
[327400280,1716042638704,-184.59951435,9.861e-05,2]
[327400282,1716042638713,-376.89753955,9.866e-05,2]
[327400284,1716042638725,-276.77726164,9.989e-05,2]
[327400286,1716042638735,-154.8647476,9.989e-05,2]
[327400288,1716042638745,-1417.01008988,9.989e-05,2]
[327400290,1716042638755,-309.45841455,9.989e-05,2]
[327400292,1716042638764,-288.14213143,9.989e-05,2]
[327400294,1716042638774,-309.5666191,9.989e-05,2]
[327400296,1716042638783,-173.8658638,9.989e-05,2]
[327400298,1716042638793,-235.39080989,9.989e-05,2]
[327400300,1716042638803,-154.88076478,9.989e-05,2]
[327400302,1716042638813,-164.48430608,9.989e-05,2]
[327400304,1716042638825,-155.02616072,9.989e-05,2]
[327400305,1716042638835,-154.86786605,9.989e-05,2]
[327400307,1716042638845,-155.27125966,9.989e-05,2]
[327400309,1716042638855,-156.08606564,9.989e-05,2]
[327400311,1716042638865,-345.90654344,9.989e-05,2]
[327400313,1716042638875,-155.23068534,9.989e-05,2]
[327400315,1716042638885,-215.16633328,9.989e-05,2]
[327400317,1716042638895,-305.62526915,9.989e-05,2]
[327400319,1716042638905,-703.94813937,9.989e-05,2]
[327400321,1716042638915,-220.92019024,9.99e-05,2]
[327400323,1716042638925,-1483.44668758,9.996e-05,2]
[327400325,1716042638935,-689.17187569,9.997e-05,2]
[327400327,1716042638945,-630.43154306,9.997e-05,2]
[327400329,1716042638954,-1631.62357452,9.998e-05,2]
[327400330,1716042638964,-172.13351663,9.998e-05,2]
[327400332,1716042638974,-205.04557167,9.998e-05,2]
[327400334,1716042638984,-587.921586,9.998e-05,2]
[327400336,1716042638993,-304.9906187,9.998e-05,2]
[327400338,1716042639004,-582.98489307,9.999e-05,2]
[327400340,1716042639014,-190.06805615,9.999e-05,2]
[327400342,1716042639024,-192.50536467,9.999e-05,2]